{"text_format":"1","workbook":"xlsx","n_sheets":3,"sheets":["Titelblatt","Prüfungsinstruktionen","Checkliste"],"not_rendered":{"charts":0,"images":1,"macros":1,"external_links":1,"defined_names":23,"comments":0,"pivot_tables":0},"unopened":[],"bounds":{"document_bytes":16777216,"sheet_cells":100000,"rows_first":2000,"rows_last":500,"rows_between":2000,"halvings":0,"cell_chars":16384,"cell_head_chars":4096},"cells_cut":0,"cells_raw":0,"read":"whole","date_system":"1900"}

{"sheet":"Titelblatt","index":0,"n_rows":33,"n_cols":7,"rows_kept":33,"cut":false,"hidden":false,"merged":[[17,1,17,3],[18,1,18,3],[19,1,19,3],[20,1,20,3],[9,3,9,5],[10,3,10,5],[11,3,11,5],[12,3,12,5],[14,3,14,5],[30,1,30,3],[21,1,21,3],[22,1,22,3],[23,1,23,3],[24,1,24,3],[25,1,25,3],[26,1,26,3],[27,1,27,3],[28,1,28,3],[29,1,29,3]]}
[]
[null,null,null,null,null,null,"Eidgenössisches Departement des Innern EDI"]
[null,null,null,null,null,null,"Bundesamt für Gesundheit BAG"]
[null,null,null,null,null,null,"Direktionsbereich Kranken- und Unfallversicherung"]
[]
[]
[]
["Prüfpunkte: Gebundenes Vermögen (inkl. vers.techn. Rückstellungen)"]
[]
[null,"Versicherer:"]
[null,"Revisionsgesellschaft:"]
[null,"Leitender Revisor:"]
[null,"Abschluss der Prüfungshandlungen am:"]
[]
[null,"Geschäftsjahr:"]
[]
[null,"Die nachfolgenden Prüffelder sind für oben aufgeführtes gebundenes Vermögen anwendbar:"]
[null,"Prüffeld",null,null,"Anwendbar","Nicht anwendbar"]
[null,"Allgemeiner Teil"]
[null,"Limiten"]
[null,"Bareinlagen"]
[null,"Festgelder & sonstige Geldmarktanlagen (Laufzeit <= 1 Jahr)"]
[null,"Obligationen"]
[null,"Aktien und weitere kotierte Beteiligungswertpapiere"]
[null,"Immobilien"]
[null,"Derivative Finanzinstrumente"]
[null,"Kollektive Kapitalanlagen"]
[null,"Securities Lending"]
[null,"Anlagen in Institutionen (im Bereich soziale Krankenversicherung)"]
[null,"Forderungen aus Rückversicherungsverträgen"]
[null,"Versicherungstechnische Rückstellungen"]
[]
[null,"Version vom 20. Dezember 2019"]

{"sheet":"Prüfungsinstruktionen","index":1,"n_rows":0,"n_cols":0,"rows_kept":0,"cut":false,"hidden":false,"merged":[]}

{"sheet":"Checkliste","index":2,"n_rows":122,"n_cols":13,"rows_kept":122,"cut":false,"hidden":false,"merged":[[94,1,94,4],[95,5,96,5],[1,4,1,7],[40,1,40,4],[88,1,88,4],[8,5,9,5],[25,5,26,5],[41,5,42,5],[35,5,36,5],[47,5,48,5],[53,5,54,5],[60,5,61,5],[67,5,68,5],[75,5,76,5],[83,5,84,5],[19,5,20,5],[60,6,61,6],[67,6,68,6],[8,6,9,6],[19,6,20,6],[25,6,26,6],[41,6,42,6],[47,6,48,6],[35,6,36,6],[53,6,54,6],[75,6,76,6],[107,5,108,5],[107,6,108,6],[112,5,113,5],[112,6,113,6],[83,6,84,6],[89,6,90,6],[95,6,96,6],[101,6,102,6],[89,5,90,5],[101,5,102,5]]}
[1,null,null,null,1,null,null,null,null,1]
[1,null,null,null,"\nEidgenössisches Departement des Innern EDI\nBundesamt für Gesundheit BAG\nDirektionsbereich Kranken- und Unfallversicherung",null,null,null,null,1]
[1,null,null,null,1,null,null,null,null,1,"Beanstandung",null,"Hoch"]
["Prüfpunkte: Gebundenes Vermögen (inkl. vers.techn. Rückstellungen)",null,null,null,null,null,null,null,null,1,"Empfehlung",null,"Mittel"]
[{"$f":"\"Berichtsjahr \"&Titelblatt!D15&\" \"","v":"Berichtsjahr  "},null,null,null,null,null,null,{"$f":"\"Versicherer: \"&Titelblatt!D10&\" \"","v":"Versicherer:  "},null,1,"Bemerkung",null,"Tief"]
[1,null,null,null,1,null,null,null,null,1]
[1,null,null,null,1,null,null,null,null,1]
[1,"Prüfpunkte Prüffeld allgemeiner Teil",null,null,1,"Art","Klassifi-zierung",1,null,{"$f":"IF(Titelblatt!D19=\"x\",1,IF(Titelblatt!F19=\"x\",0,1))","v":1}]
[1,null,null,null,1,"Beanstandung/ Empfehlung/ Bemerkung","Hoch/\nMittel/\nTief",1,null,{"$f":"J8","v":1}]
["A","Allgemeines","Trifft zu","Trifft\nnicht zu","Erläuterungen",null,null,1,null,{"$f":"J9","v":1}]
["A1","Die dem gebundenen Vermögen zugewiesenen Werte sind gemäss Art. 17 Abs. 3 KVAV unbelastet und dienen nicht der Sicherstellung von Ansprüchen Dritter gegen den Versicherer.",null,null,null,null,null,1,null,1]
["A2","Der Sollbetrag gemäss Art. 15 Abs. 2 KVAG ist durch zulässige Aktiven gedeckt.",null,null,null,null,null,1,null,1]
["A3","Die organisatorischen Massnahmen stellen sicher, dass die jederzeitige Deckung des Sollbetrages im Sinne von Art. 15 Abs. 2 KVAG durch das gebundenene Vermögen gewährleistet ist.",null,null,null,null,null,1,null,1]
["A4","Die Überprüfung der Schuldnerbonität findet gemäss Art. 43 Abs. 7 KVAV statt und ist entsprechend dokumentiert.",null,null,null,null,null,1,null,1]
["A5","Die Vorgabe für die Verwahrung der Vermögenswerte in der Schweiz gemäss Art. 44 Abs. 4 KVAV sind eingehalten. Insbesondere wurden für sämtliche Depots und Konti entsprechende Mustervereinbarungen unterzeichnet.",null,null,null,null,null,1,null,1]
["A6","Die Konti und Depots, die dem gebundenen Vermögen zugeordnet sind, lauten auf den Namen des Versicherers und sind als solche eindeutig identifiziert gemäss Art. 18 Abs. 1 KVAV.",null,null,null,null,null,1,null,1]
["A7","Die Angaben auf den beiliegenden Formularen EF KAP sind vollständig und korrekt ausgefüllt.",null,null,null,null,null,1,null,1]
[1,null,null,null,null,null,null,1,null,1]
[null,null,null,null,null,"Art","Klassifi-zierung",1,null,{"$f":"J18","v":1}]
[1,null,null,null,null,"Beanstandung/ Empfehlung/ Bemerkung","Hoch/\nMittel/\nTief",1,null,{"$f":"J19","v":1}]
["B","Weitere Angaben","Trifft zu","Trifft\nnicht zu",{"$f":"E10","v":"Erläuterungen"},null,null,1,null,1]
["B1","Der Versicherer hat die von der externen Revision für die Prüfung benötigten Dokumente und Informationen vollständig und rechtzeitig zur Verfügung gestellt.",null,null,null,null,null,1,null,{"$f":"J21","v":1}]
[1,null,null,null,null,null,null,1,null,{"$f":"J22","v":1}]
[]
[2,"Prüfpunkte Prüffeld Limiten",null,null,null,"Art","Klassifi-zierung",1,null,{"$f":"IF(Titelblatt!D20=\"x\",1,IF(Titelblatt!F20=\"x\",0,1))","v":1}]
[1,null,null,null,null,"Beanstandung/ Empfehlung/ Bemerkung","Hoch/\nMittel/\nTief",1,null,{"$f":"J25","v":1}]
["C","Limiten: Begrenzungen","Trifft zu","Trifft\nnicht zu",{"$f":"E10","v":"Erläuterungen"},null,null,1,null,{"$f":"J26","v":1}]
["C1","Die 5%-Limite des gebundenen Vermögens je Schuldner gemäss Art. 20 Abs.1 Bst. a KVAV ist eingehalten. Bei den Ausnahmen handelt es sich um Banken (20%-Limite) bei Bareinlagen, Bankguthaben, Festgeldern oder sonstigen Geldmarktanlagen (bis zu einem Verfall kleiner gleich ein Jahr) gemäss Art. 20 Abs. 1 Bst. a KVAV. Ist der Schuldner ein Kanton, Pfandbriefinstitut oder der Bund gibt es keine Beschränkung unabhängig der Laufzeit gemäss Art. 20 Abs. 2 KVAV.",null,null,null,null,null,1,null,1]
["C2","Die 20%-Limite in Anlagen in Fremdwährungen gemäss Art. 20 Abs.1 Bst. d KVAV ist eingehalten. Fremdwährungsanlagen, die über dieser Limite liegen, sind entsprechend mit Derivativen abgesichert.",null,null,null,null,null,1,null,1]
["C3","Die 25%-Limite in Anlagen wie Aktien, Partizaptions-, Genuss- und Anteilsscheine sowie andere Kapitalbeteiligungen gemäss Art. 20 Abs.1 Bst. b KVAV ist eingehalten. Investitionen über dieser Limite sind entsprechend mit Derivativen abgesichert.",null,null,null,null,null,1,null,1]
["C4","Die 25%-Limite in Wohn- und Geschäftsliegenschaften gemäss Art. 20 Abs.1 Bst. c KVAV ist eingehalten. Auch sind die jeweils 5%-Limiten für Anlagen im Ausland und je Objekt (ausser bei Eigennutzung) eingehalten.",null,null,null,null,null,1,null,1]
["C5","Die 5%-Limite je Anlage für Kapitalanlagen ist eingehalten. Kollektiven Anlagen, welche diese Limite überschreiten, sind angemessen diversifiziert und deren Vermögenswerte sind im Konkursfall der kollektiven Anlage oder der Depotbank zugunsten der Anleger ausgesondert gemäss Art. 21 Abs. 2  KVAV.",null,null,null,null,null,1,null,1]
[1,null,null,null,null,null,null,1,null,1]
[]
[3,"Prüfpunkte Prüffeld Bareinlagen",null,null,null,"Art","Klassifi-zierung",1,null,{"$f":"IF(Titelblatt!D21=\"x\",1,IF(Titelblatt!F21=\"x\",0,1))","v":1}]
[1,null,null,null,null,"Beanstandung/ Empfehlung/ Bemerkung","Hoch/\nMittel/\nTief",1,null,{"$f":"J35","v":1}]
["D","Bareinlagen: Weitere Fragen","Trifft zu","Trifft\nnicht zu",{"$f":"E10","v":"Erläuterungen"},null,null,1,null,{"$f":"J36","v":1}]
["D1","Die Bareinlagen sind an einem sicheren Ort verwahrt und der Zugriff ist sehr restriktiv und klar geregelt.",null,null,null,null,null,1,null,1]
[1,null,null,null,null,null,null,1,null,1]
[]
[4,"Prüfpunkte Prüffeld Festgelder & sonstige Geldmarktanlagen\n(Laufzeit <= 1 Jahr)",null,null,null,"Art","Klassifi-zierung",1,null,{"$f":"IF(Titelblatt!D22=\"x\",1,IF(Titelblatt!F22=\"x\",0,1))","v":1}]
[1,null,null,null,null,"Beanstandung/ Empfehlung/ Bemerkung","Hoch/\nMittel/\nTief",1,null,{"$f":"J41","v":1}]
["E","Festgelder & sonstige Geldmarktanlagen: Bewertung","Trifft zu","Trifft\nnicht zu",{"$f":"E10","v":"Erläuterungen"},null,null,1,null,{"$f":"J42","v":1}]
["E1","Die Bewertung erfolgt zum Marktwert. Insbesondere erfolgt die Bewertung von festverzinslichen Kapitalanlagen zum Marktwert gemäss Art. 2 der Verordnung des BAG über Rechnungslegung und Berichterstattung in der sozialen Krankenversicherung.",null,null,null,null,null,1,null,1]
[1,null,null,null,null,null,null,1,null,1]
[]
[5,"Prüfpunkte Prüffeld Obligationen",null,null,null,"Art","Klassifi-zierung",1,null,{"$f":"IF(Titelblatt!D23=\"x\",1,IF(Titelblatt!F23=\"x\",0,1))","v":1}]
[1,null,null,null,null,"Beanstandung/ Empfehlung/ Bemerkung","Hoch/\nMittel/\nTief",1,null,{"$f":"J47","v":1}]
["F","Obligationen: Bewertung","Trifft zu","Trifft\nnicht zu",{"$f":"E10","v":"Erläuterungen"},null,null,1,null,{"$f":"J48","v":1}]
["F1","Die Bewertung erfolgt zum Marktwert und die Schuldnerbonität ist gut überprüfbar. Insbesondere erfolgt die Bewertung von festverzinslichen Kapitalanlagen zum Marktwert gemäss Art. 2 der Verordnung des BAG über Rechnungslegung und Berichterstattung in der sozialen Krankenversicherung.",null,null,null,null,null,1,null,1]
[1,null,null,null,null,null,null,1,null,1]
[]
[6,"Prüfpunkte Prüffeld Aktien und weitere kotierte Beteiligungspapiere",null,null,null,"Art","Klassifi-zierung",1,null,{"$f":"IF(Titelblatt!D24=\"x\",1,IF(Titelblatt!F24=\"x\",0,1))","v":1}]
[1,null,null,null,null,"Beanstandung/ Empfehlung/ Bemerkung","Hoch/\nMittel/\nTief",1,null,{"$f":"J53","v":1}]
["G","Aktien und weitere kotierte Beteiligungspapiere: Zulässigkeit und Bewertung","Trifft zu","Trifft\nnicht zu",{"$f":"E10","v":"Erläuterungen"},null,null,1,null,{"$f":"J54","v":1}]
["G1","Die dem gebundenen Vermögen zugewiesenen Aktien, Partizipations- und Genussscheine, Anteilsscheine und andere Kapitalbeteiligungen erfüllen die Bedingungen gemäss Art. 19 Abs. 1 Bst. c KVAV.",null,null,null,null,null,1,null,1]
["G2","Der Versicherer hat sichergestellt, dass die Anlagen einfach zu bewerten sind.\n",null,null,null,null,null,1,null,1]
[1,null,null,null,null,null,null,1,null,1]
[]
[7,"Prüfpunkte Prüffeld Immobilien",null,null,null,"Art","Klassifi-zierung",1,null,{"$f":"IF(Titelblatt!D25=\"x\",1,IF(Titelblatt!F25=\"x\",0,1))","v":1}]
[1,null,null,null,null,"Beanstandung/ Empfehlung/ Bemerkung","Hoch/\nMittel/\nTief",1,null,{"$f":"J60","v":1}]
["H","Immobilien: Bewertung und weitere Fragen","Trifft zu","Trifft\nnicht zu",{"$f":"E10","v":"Erläuterungen"},null,null,1,null,{"$f":"J61","v":1}]
["H1","Die Bewertung erfolgt zum aktuellen Wert.",null,null,null,null,null,1,null,1]
["H2","Selbstgenutzte Liegenschaften sind gemäss Art. 2 Abs. 1 Bst. f der Verordnung des BAG über Rechnungslegung und Berichterstattung in der sozialen Krankenversicherung ausschliesslich bei den Kapitalanlagen ausgewiesen.",null,null,null,null,null,1,null,1]
[1,null,null,null,null,null,null,1,null,1]
[]
[8,"Prüfpunkte Prüffeld Derivative Finanzinstrumente",null,null,null,"Art","Klassifi-zierung",1,null,{"$f":"IF(Titelblatt!D26=\"x\",1,IF(Titelblatt!F26=\"x\",0,1))","v":1}]
[1,null,null,null,null,"Beanstandung/ Empfehlung/ Bemerkung","Hoch/\nMittel/\nTief",1,null,{"$f":"J67","v":1}]
["I","Derivative Finanzinstrumente: Zulässigkeit, Bewertung und weitere Fragen","Trifft zu","Trifft\nnicht zu",{"$f":"E10","v":"Erläuterungen"},null,null,1,null,{"$f":"J68","v":1}]
["I1","Die derivativen Finanzinstrumente erfüllen die Bedingungen gemäss Art. 19 Abs.1 Bst. f KVAV.",null,null,null,null,null,1,null,1]
["I2","Die Bewertung erfolgt zum Marktwert.",null,null,null,null,null,1,null,1]
["I3","Die Handelbarkeit ist gewährleistet und die Bonität der Gegenpartei ist geprüft und angemessen gemäss Art. 47 Abs. 1 KVAV.",null,null,null,null,null,1,null,1]
[1,null,null,null,null,null,null,1,null,1]
[]
[9,"Prüfpunkte Prüffeld Kollektive Kapitalanlagen",null,null,null,"Art","Klassifi-zierung",1,null,{"$f":"IF(Titelblatt!D27=\"x\",1,IF(Titelblatt!F27=\"x\",0,1))","v":1}]
[1,null,null,null,null,"Beanstandung/ Empfehlung/ Bemerkung","Hoch/\nMittel/\nTief",1,null,{"$f":"J75","v":1}]
["J","Kollektive Kapitalanlagen: Zulässigkeit, Bewertung und weitere Fragen","Trifft zu","Trifft\nnicht zu",{"$f":"E10","v":"Erläuterungen"},null,null,1,null,{"$f":"J76","v":1}]
["J1","Die dem gebundenen Vermögen zugewiesenen Kollektiven Kapitalanlagen erfüllen die Bedingungen gemäss Art. 19 Abs. 1 Bst. e KVAV.",null,null,null,null,null,1,null,1]
["J2","Die Bewertung erfolgt zum Marktwert.",null,null,null,null,null,1,null,1]
["J3","Die kollektiven Kapitalanlagen werden den jeweiligen Anlagekategorien (Art. 19 Abs. 1 Bst. a-d) und Währungen gemäss Art. 21 Abs. 1 KVAV zugewiesen.",null,null,null,null,null,1,null,1]
[1,null,null,null,null,null,null,1,null,1]
[]
[10,"Prüfpunkte Prüffeld Securities Lending",null,null,null,"Art","Klassifi-zierung",1,null,{"$f":"IF(Titelblatt!D28=\"x\",1,IF(Titelblatt!F28=\"x\",0,1))","v":1}]
[1,null,null,null,null,"Beanstandung/ Empfehlung/ Bemerkung","Hoch/\nMittel/\nTief",1,null,{"$f":"J83","v":1}]
["K","Securities Lending: Begrenzungen","Trifft zu","Trifft\nnicht zu",{"$f":"E10","v":"Erläuterungen"},null,null,1,null,{"$f":"J84","v":1}]
["K1","Die Effektenleihe erfolgt ausschliesslich innerhalb einer kollektiven Kapitalanlage (Art. 19 Abs. 1 Bst.e) und der Anspruch auf Rückfoderung ist effektiv sichergestellt gemäss Art. 48 Abs. 2 KVAV.",null,null,null,null,null,1,null,1]
[1,null,null,null,null,null,null,1,null,1]
[]
[11,"Prüfpunkte Prüffeld Anlagen in Institutionen (im Bereich soziale Krankenversicherung)",null,null,null,"Art","Klassifi-zierung",1,null,{"$f":"IF(Titelblatt!D29=\"x\",1,IF(Titelblatt!F29=\"x\",0,1))","v":1}]
[1,null,null,null,null,"Beanstandung/ Empfehlung/ Bemerkung","Hoch/\nMittel/\nTief",1,null,{"$f":"J89","v":1}]
["L","Anlagen in Institutionen soz. Krankenvers.: Zulässigkeit der Werte","Trifft zu","Trifft\nnicht zu",{"$f":"E10","v":"Erläuterungen"},null,null,1,null,{"$f":"J90","v":1}]
["L1","Das ausgewiesene gebundene Vermögen weist keine Anlagen in Institutionen aus, die der Durchführung der sozialen Krankenversicherung dienen (Art. 19 Abs. 2 KVAV).",null,null,null,null,null,1,null,1]
[1,null,null,null,null,null,null,1,null,1]
[]
[12,"Prüfpunkte Prüffeld Forderungen aus Rückversicherungsverträgen",null,null,null,"Art","Klassifi-zierung",1,null,{"$f":"IF(Titelblatt!D30=\"x\",1,IF(Titelblatt!F30=\"x\",0,1))","v":1}]
[1,null,null,null,null,"Beanstandung/ Empfehlung/ Bemerkung","Hoch/\nMittel/\nTief",1,null,{"$f":"J95","v":1}]
["M","Anrechenbarkeit von Forderungen aus Rückversicherungsverträgen","Trifft zu","Trifft\nnicht zu",null,null,null,1,null,{"$f":"J96","v":1}]
["M1","Die dem gebundenen Vermögen angerechneten Forderungen aus Rückversicherungs-verträgen wurden von der Aufsichtsbehörde zugelassen (gemäss Art. 18 Abs. 4 KVAV).",null,null,null,null,null,1,null,1]
[1,null,null,null,null,null,null,1,null,1]
[]
[13,"Prüfpunkte Versicherungstechnische Rückstellungen",null,null,null,"Art","Klassifi-zierung",1,null,{"$f":"IF(Titelblatt!D31=\"x\",1,IF(Titelblatt!F31=\"x\",0,1))","v":1}]
[1,null,null,null,null,"Beanstandung/ Empfehlung/ Bemerkung","Hoch/\nMittel/\nTief",1,null,{"$f":"J101","v":1}]
["N","Fragen zur Buchhaltung und Vorgehensweisen","Trifft zu","Trifft\nnicht zu","Erläuterungen",null,null,1,null,{"$f":"J102","v":1}]
["N1","Die gebildeten versicherungstechnischen Rückstellungen sind angemessen (Art. 13 Abs. 1 KVAG) und sind nach anerkannten versicherungsmathematischen Methoden berechnet worden (Art. 14 Abs 1 KVAV).",null,null,null,null,null,1,null,1]
["N2","Die Rückstellungen sind gemäss Art. 13 Abs. 2 KVAG nach den verschiedenen Kategorien berechnet und aufgeteilt.",null,null,null,null,null,1,null,1]
["N3","Die Rückstellungen sind ohne Berücksichtigung von allfälligen Rückversicherungsverträgen (Art. 14 Abs. 1 KVAV) berechnet worden.",null,null,null,null,null,1,null,1]
[1,null,null,null,null,"Art","Klassifi-zierung",1,null,1]
[1,null,null,null,null,"Beanstandung/ Empfehlung/ Bemerkung","Hoch/\nMittel/\nTief",1,null,{"$f":"J107","v":1}]
["O","Fragen zu Annahmen, Grundlagen und Methoden","Trifft zu","Trifft\nnicht zu",{"$f":"E103","v":"Erläuterungen"},null,null,1,null,{"$f":"J108","v":1}]
["O1","Angaben zur Prognoseunsicherheit sind erfolgt.",null,null,null,null,null,1,null,1]
["O2","Die Schadenbearbeitungskosten werden separat nach dem Grundsatz \"best estimate\" ermittelt.",null,null,null,null,null,1,null,1]
[1,null,null,null,null,"Art","Klassifi-zierung",1,null,{"$f":"J111","v":1}]
[1,null,null,null,null,"Beanstandung/ Empfehlung/ Bemerkung","Hoch/\nMittel/\nTief",1,null,{"$f":"J112","v":1}]
["P","Fragen zu Vollständigkeit und Plausibilität","Trifft zu","Trifft\nnicht zu",{"$f":"E103","v":"Erläuterungen"},null,null,1,null,1]
["P1","Der Versicherer hat die Datenqualität (Abwicklungsdreieck) auf Vollständigkeit und Konsistenz geprüft und als korrekt befunden.",null,null,null,null,null,1,null,1]
["P2","Der Sollbetrag des gebundenen Vermögens der sozialen Krankenversicherung entspricht den versicherungstechnischen Rückstellungen gemäss Art. 15 Abs. 2 KVAG.",null,null,null,null,null,1,null,1]
["P3","Die Aufteilung der Rückstellungen auf die Kantone ist erfolgt und plausibel.",null,null,null,null,null,1,null,1]
["P4","Alle Veränderungen betreffend die versicherungstechnischen Rückstellungen sind korrekt über das Konto 45 gebucht.",null,null,null,null,null,1,null,1]
["P5","Die versicherungstechnischen Rückstellungen sind korrekt in der Bilanz in den 210-er Konten abgebildet.",null,null,null,null,null,1,null,1]
[1,null,null,null,null,null,null,1,null,1]
[null,null,null,null,null,null,null,null,null,1]
[null,null,null,null,null,null,null,null,null,{"$f":"SUM(J1:J121)","v":109}]